bitfinex/quotes_BTCUSD_20240715
["timestamp","ask_amount","ask_price","bid_price","bid_amount"]
[1721019878364,0.01293328,62712.0,62711.0,1.171218]
[1721019880515,0.0129293,62712.0,62711.0,1.171218]
[1721019883857,0.01280335,62712.0,62711.0,1.171218]
[1721019884275,0.00180817,62712.0,62711.0,1.171218]
[1721019884476,0.01280317,62712.0,62711.0,1.171218]
[1721019886883,0.01280317,62712.0,62711.0,1.15540309]
[1721019887107,0.01170839,62712.0,62711.0,1.15540309]
[1721019890414,0.01170323,62712.0,62711.0,1.15540309]
[1721019891893,0.01170323,62712.0,62711.0,1.53105373]
[1721019892103,0.01170323,62712.0,62711.0,2.28628373]
[1721019892104,0.00180817,62712.0,62711.0,2.28628373]
[1721019892437,0.11880764,62734.0,62711.0,2.28628373]
[1721019892438,0.04752305,62738.0,62737.0,0.71728]
[1721019892739,0.04752305,62738.0,62737.0,0.205856]
[1721019892740,0.01096681,62738.0,62737.0,0.205856]
[1721019892934,0.00083,62741.0,62740.0,0.286898]
[1721019893132,0.01130313,62741.0,62740.0,0.286898]
[1721019893332,0.01130313,62741.0,62740.0,0.717245]
[1721019893585,0.00083,62741.0,62740.0,0.717245]
[1721019893827,0.01130218,62741.0,62740.0,0.717245]
[1721019894044,0.01141767,62741.0,62740.0,0.717245]
[1721019894422,0.01141767,62741.0,62740.0,0.716245]
[1721019894836,0.01141767,62741.0,62740.0,0.729245]
[1721019895164,0.01141767,62741.0,62740.0,0.738245]
[1721019895385,0.01241767,62741.0,62740.0,0.738245]
[1721019896061,0.01241767,62741.0,62740.0,0.725245]
[1721019896609,0.01242381,62741.0,62740.0,0.738245]
[1721019896819,0.01242338,62741.0,62740.0,0.738245]
[1721019897263,0.01142338,62741.0,62740.0,0.729245]
[1721019897696,0.01242338,62741.0,62740.0,0.738245]
[1721019898132,0.01142338,62741.0,62740.0,0.729245]
[1721019898520,0.12380274,62741.0,62740.0,0.738245]
[1721019898850,0.01242338,62741.0,62740.0,0.738245]
[1721019898979,0.12280274,62741.0,62740.0,0.729245]
[1721019899193,0.12380274,62741.0,62740.0,0.725245]
[1721019899578,0.12380274,62741.0,62740.0,0.738245]
[1721019899797,0.12380274,62741.0,62740.0,0.725245]
[1721019899998,0.12315443,62741.0,62740.0,0.738245]
[1721019900199,0.12315445,62741.0,62740.0,0.738245]
[1721019900440,0.12315445,62741.0,62740.0,0.725245]
[1721019900850,0.12315445,62741.0,62740.0,0.738245]
[1721019901289,0.12215445,62741.0,62740.0,0.729245]
[1721019901482,0.20786198,62741.0,62740.0,0.729245]
[1721019901708,0.12315445,62741.0,62740.0,0.738245]
[1721019902088,0.20786198,62741.0,62740.0,0.442347]
[1721019902288,0.12215445,62741.0,62740.0,0.442347]
[1721019902527,0.11320936,62741.0,62740.0,0.451347]
[1721019902735,0.11320936,62741.0,62740.0,0.438347]
[1721019902736,0.12310299,62741.0,62740.0,0.438347]
[1721019902949,0.12310299,62741.0,62740.0,0.442347]
[1721019902950,0.11220936,62741.0,62740.0,0.442347]
[1721019903157,0.01072372,62741.0,62740.0,0.429347]
[1721019903376,0.01172372,62741.0,62740.0,0.725245]
[1721019903599,0.00183,62741.0,62740.0,1.267443]
[1721019904440,0.00183,62741.0,62740.0,1.254443]
[1721019904906,0.00083,62741.0,62740.0,1.245443]
[1721019905222,0.00183,62741.0,62740.0,1.254443]
[1721019905805,0.00083,62741.0,62740.0,1.259443]
[1721019906032,0.00083,62741.0,62740.0,1.273443]
[1721019906162,0.00183,62741.0,62740.0,1.560341]
[1721019906509,0.00183,62741.0,62740.0,1.296443]
[1721019906715,0.00183,62741.0,62740.0,1.583341]
[1721019908483,0.00183,62741.0,62740.0,1.59270265]
[1721019910439,0.00183,62741.0,62740.0,1.68132329]
[1721019911226,0.00183,62741.0,62740.0,2.33642129]
[1721019911438,0.00083,62751.0,62750.0,0.78862064]
[1721019911638,0.00083,62751.0,62750.0,1.87709864]
[1721019911851,0.00083,62751.0,62750.0,2.73765464]
[1721019912078,0.00083,62751.0,62750.0,2.76963464]
[1721019912374,0.00083,62751.0,62750.0,3.05548664]
[1721019913043,0.00083,62751.0,62750.0,3.06948664]
[1721019913296,0.00083,62751.0,62750.0,3.55633864]
[1721019913297,0.001,62751.0,62750.0,3.55633864]
[1721019913456,0.00083,62758.0,62757.0,2.67783064]
[1721019913672,0.00083,62758.0,62757.0,3.02883064]
[1721019914860,0.00083,62775.0,62757.0,3.02883064]
[1721019914861,0.00083,62775.0,62774.0,1.62325964]
[1721019915021,0.00083,62775.0,62774.0,1.97425964]
[1721019916473,0.00083,62775.0,62774.0,1.98825964]
[1721019917944,0.00083,62775.0,62774.0,1.914639]
[1721019918284,0.00083,62775.0,62774.0,1.195997]
[1721019918490,0.00083,62775.0,62774.0,1.131597]
[1721019919137,0.00083,62775.0,62774.0,1.21921764]
[1721019919383,0.00083,62775.0,62774.0,1.131597]
[1721019919987,0.00083,62775.0,62774.0,1.418339]
[1721019921821,0.00083,62775.0,62774.0,1.50595964]
[1721019922023,0.00083,62775.0,62774.0,1.418339]
[1721019922427,0.00083,62775.0,62774.0,1.67085964]
[1721019922623,0.00083,62775.0,62774.0,1.76945964]
[1721019923242,0.00083,62775.0,62774.0,2.08805964]
[1721019924110,0.00083,62775.0,62774.0,2.18805964]
[1721019924316,1e-06,62775.0,62774.0,2.96172364]
[1721019924520,0.00834,62780.0,62779.0,2.58736064]
[1721019924722,0.00083,62789.0,62787.0,1.50432764]
[1721019924927,0.00083,62789.0,62787.0,2.88853364]
[1721019925124,0.00083,62789.0,62787.0,3.34341664]
[1721019925541,0.00083,62789.0,62787.0,3.37539664]
[1721019926142,0.00083,62789.0,62787.0,3.38939664]
[1721019926549,0.00083,62789.0,62787.0,3.37539664]
[1721019927613,1e-06,62790.0,62789.0,2.35118164]
[1721019927813,0.00834,62792.0,62791.0,1.05909764]
[1721019928014,0.1389,62817.0,62799.0,1.46486264]
[1721019928218,0.1389,62817.0,62799.0,2.97122664]
[1721019928416,0.1389,62817.0,62799.0,2.99422664]
[1721019929294,0.1389,62817.0,62799.0,3.00822664]
[1721019929494,0.1389,62817.0,62799.0,3.39485464]
[1721019929706,0.1389,62817.0,62799.0,3.40885464]
[1721019929904,1e-08,62804.0,62803.0,1.47736564]
[1721019930114,1e-08,62804.0,62803.0,2.08432564]
[1721019930328,0.00034123,62824.0,62803.0,2.08432564]
[1721019930329,0.00034123,62824.0,62808.0,1.99085464]
[1721019930548,0.00034123,62824.0,62808.0,3.17132402]
[1721019930811,0.00034123,62824.0,62810.0,1.34764564]
[1721019931032,0.00034123,62824.0,62813.0,1.40421064]
[1721019931252,0.00034123,62824.0,62813.0,2.56214864]
[1721019931493,0.002,62829.0,62828.0,0.929744]
[1721019931494,0.00067123,62829.0,62828.0,0.929744]
[1721019931699,0.00067123,62829.0,62828.0,1.921066]
[1721019931897,0.00067123,62829.0,62828.0,1.92721273]
[1721019932078,0.00067123,62829.0,62828.0,1.42721273]
[1721019932457,0.06457123,62829.0,62828.0,0.85422073]
[1721019932660,0.26265812,62829.0,62828.0,0.46772473]
[1721019932797,0.06457123,62829.0,62828.0,0.75422073]
[1721019933407,0.06457123,62829.0,62828.0,1.05471673]
[1721019933613,0.06457123,62829.0,62828.0,1.04071673]
[1721019934057,0.06457123,62829.0,62828.0,0.75422073]
[1721019934380,0.14717123,62829.0,62828.0,0.75422073]
[1721019934507,0.14717123,62829.0,62828.0,1.34121273]
[1721019934929,0.08327123,62829.0,62828.0,1.34121273]
[1721019935168,0.08327123,62829.0,62828.0,1.05471673]
[1721019935382,0.08327123,62829.0,62828.0,1.04071673]
[1721019935597,0.08327123,62829.0,62828.0,1.05471673]
[1721019935891,0.08327123,62829.0,62828.0,1.06871673]
[1721019936095,0.08327123,62829.0,62828.0,1.04071673]
[1721019936437,0.28135812,62829.0,62828.0,0.76822073]
[1721019936678,0.19565059,62829.0,62828.0,0.76822073]
[1721019937088,0.08327123,62829.0,62828.0,0.76822073]
[1721019937290,0.08327123,62829.0,62828.0,1.05471673]
[1721019937620,0.08327123,62829.0,62828.0,1.06871673]
[1721019938485,0.48730312,62829.0,62828.0,0.35247673]
[1721019938691,0.34405812,62829.0,62828.0,0.35247673]
[1721019939255,0.34405812,62829.0,62828.0,0.76822073]
[1721019939256,0.25835059,62829.0,62828.0,0.76822073]
[1721019939457,0.25835059,62829.0,62828.0,0.48172473]
[1721019939657,0.34405812,62829.0,62828.0,0.32447673]
[1721019939876,0.77379412,62829.0,62828.0,0.32447673]
[1721019940077,1.06028512,62829.0,62828.0,0.33847673]
[1721019940279,1.06028512,62829.0,62828.0,0.31833]
[1721019940280,1.13696008,62829.0,62828.0,0.31833]
[1721019940473,1.13696008,62829.0,62814.0,0.286556]
[1721019940474,0.19808689,62818.0,62817.0,0.143272]
[1721019940654,0.33758689,62818.0,62816.0,0.143275]
[1721019940887,0.11237936,62813.0,62812.0,0.063834]
[1721019941092,0.11237936,62813.0,62810.0,0.143288]
[1721019941093,0.19808689,62811.0,62810.0,0.143288]
[1721019941299,0.11237936,62812.0,62810.0,0.143288]
[1721019941522,0.0768,62813.0,62812.0,0.143284]
[1721019941724,0.0768,62813.0,62812.0,0.429853]
[1721019941858,0.11237936,62817.0,62816.0,0.143275]
[1721019942056,0.11237936,62817.0,62816.0,0.429826]
[1721019942262,0.1422,62818.0,62816.0,0.429826]
[1721019942465,0.1422,62818.0,62815.0,0.286553]
[1721019942466,0.1422,62818.0,62817.0,0.143273]
[1721019942696,0.1422,62818.0,62817.0,0.429819]
[1721019942862,0.34028689,62818.0,62817.0,0.429819]
[1721019943067,0.34028689,62818.0,62817.0,0.143273]
[1721019943430,0.34028689,62818.0,62815.0,0.286553]
[1721019943431,0.19808689,62816.0,62815.0,0.143275]
[1721019943705,0.1422,62818.0,62815.0,0.143275]
[1721019943706,0.11237936,62817.0,62815.0,0.143275]
[1721019943862,0.11237936,62817.0,62816.0,0.143275]
[1721019944493,0.0795,62818.0,62817.0,0.716365]
[1721019944699,0.19187936,62818.0,62817.0,0.429819]
[1721019944856,0.0795,62818.0,62817.0,0.429819]
[1721019945251,0.11237936,62817.0,62816.0,0.429825]
[1721019945497,0.0795,62818.0,62817.0,0.429819]
[1721019945694,0.0795,62818.0,62817.0,0.143273]
[1721019945897,0.0795,62818.0,62817.0,0.155273]
[1721019946140,0.0795,62818.0,62817.0,0.169273]
[1721019946297,0.0795,62818.0,62817.0,0.155273]
[1721019946721,0.0795,62818.0,62817.0,0.455819]
[1721019946927,0.0795,62818.0,62817.0,0.441819]
[1721019947675,0.0795,62818.0,62817.0,0.429819]
[1721019948084,0.11237936,62820.0,62818.0,0.286542]
[1721019948296,0.35601086,62831.0,62828.0,0.429744]
[1721019948297,0.01734619,62829.0,62828.0,0.429744]
[1721019948510,0.01734619,62829.0,62823.0,0.5]
[1721019948719,0.01734619,62829.0,62817.0,0.4771]
[1721019948720,0.11237936,62824.0,62817.0,0.4771]
[1721019948849,0.11237936,62820.0,62819.0,0.429804]
[1721019949053,0.25747936,62820.0,62819.0,0.429804]
[1721019949255,0.25747936,62820.0,62819.0,0.716341]
[1721019949256,0.1451,62820.0,62819.0,0.716341]
[1721019950084,0.34318689,62820.0,62819.0,0.429804]
[1721019950310,0.34318689,62820.0,62819.0,0.443804]
[1721019950709,0.25747936,62820.0,62819.0,0.443804]
[1721019951376,0.48645289,62820.0,62819.0,0.026]
[1721019951593,0.0815,62820.0,62819.0,0.441805]
[1721019951723,0.11237936,62823.0,62819.0,0.441805]
[1721019951724,0.11237936,62823.0,62822.0,0.429784]
[1721019952127,0.11237936,62823.0,62822.0,0.43593659]
[1721019952989,0.11237936,62823.0,62822.0,0.15941359]
[1721019953329,0.11237936,62823.0,62822.0,0.03015259]
[1721019953330,0.19808689,62823.0,62822.0,0.03015259]
[1721019953586,0.34134589,62823.0,62822.0,0.03015259]
[1721019953764,0.34134589,62823.0,62822.0,0.024]
[1721019953898,0.34134589,62823.0,62822.0,0.03014888]
[1721019954316,0.19808689,62823.0,62822.0,0.03014888]
[1721019954742,0.11237936,62823.0,62822.0,0.17340988]
[1721019954948,0.11237936,62823.0,62822.0,0.74645588]
[1721019955150,0.0827,62826.0,62825.0,0.716275]
[1721019955363,0.19507936,62826.0,62825.0,0.43591291]
[1721019955802,0.0827,62826.0,62825.0,0.43591291]
[1721019956017,0.19507936,62826.0,62825.0,0.43591291]
[1721019956221,0.08570753,62827.0,62826.0,0.429757]
[1721019956222,0.11237936,62827.0,62826.0,0.429757]
[1721019956410,0.19808689,62827.0,62826.0,0.429757]
[1721019956666,0.19808689,62827.0,62826.0,0.72240909]
[1721019956844,0.11237936,62827.0,62826.0,0.72240909]
[1721019957056,0.19012555,62829.0,62828.0,0.429744]
[1721019957327,0.19012555,62829.0,62828.0,0.143248]
[1721019957528,0.27583308,62829.0,62828.0,0.14939346]
[1721019959093,0.70556908,62829.0,62828.0,0.00614546]
[1721019959523,0.11237936,62824.0,62823.0,0.143259]
[1721019959928,0.11237936,62824.0,62823.0,0.14940854]
[1721019959929,0.1121878,62824.0,62823.0,0.14940854]
[1721019960044,0.19789533,62824.0,62823.0,0.14940854]
[1721019960246,0.1121878,62824.0,62823.0,0.14940854]
[1721019960466,0.34115233,62824.0,62823.0,0.00614954]
[1721019960675,0.34079533,62824.0,62823.0,0.00614954]
[1721019960880,0.34079533,62824.0,62817.0,0.2897255]
[1721019960881,0.2550878,62824.0,62819.0,0.286533]
[1721019961096,0.1429,62824.0,62823.0,0.43592754]
[1721019961289,0.20663399,62829.0,62828.0,0.429744]
[1721019961485,0.29234152,62829.0,62828.0,0.429744]
[1721019961710,0.12953399,62829.0,62828.0,0.43588946]
[1721019961885,0.01734619,62829.0,62828.0,0.43588946]
[1721019962105,0.12953399,62829.0,62828.0,0.72238546]
[1721019962304,0.21524152,62829.0,62828.0,0.14939346]
[1721019962532,0.64497752,62829.0,62828.0,0.01314546]
[1721019962705,0.78237752,62829.0,62828.0,0.01314546]
[1721019963051,0.78237752,62829.0,62828.0,0.009]
[1721019963260,0.35264152,62829.0,62828.0,0.009]
[1721019963435,0.35264152,62829.0,62828.0,0.152248]
[1721019963649,0.35264152,62829.0,62828.0,0.01513662]
[1721019963994,0.35264152,62829.0,62828.0,0.00813662]
[1721019964170,0.49588652,62829.0,62828.0,0.00613662]
[1721019964588,0.19789533,62826.0,62825.0,0.429763]
[1721019964739,0.19789533,62826.0,62825.0,0.143253]
[1721019964940,0.19789533,62826.0,62825.0,0.1493847]
[1721019965166,0.19789533,62826.0,62825.0,0.0061317]
[1721019965374,0.19789533,62826.0,62825.0,0.28651]
[1721019965611,0.1121878,62827.0,62826.0,0.143252]
[1721019966120,0.19789533,62827.0,62826.0,0.0061304]
[1721019966320,0.34114533,62827.0,62826.0,0.0061304]
[1721019966684,0.19789533,62826.0,62825.0,0.015]
[1721019966885,0.19789533,62826.0,62825.0,0.006]
[1721019967094,0.1121878,62827.0,62825.0,0.15538638]
[1721019967291,0.1121878,62827.0,62825.0,0.143255]
[1721019967292,0.00306353,62826.0,62825.0,0.143255]
[1721019967693,0.00306353,62826.0,62825.0,0.429765]
[1721019967895,0.01817619,62829.0,62828.0,0.429744]
[1721019968098,0.00150123,62829.0,62828.0,0.79204]
[1721019968340,0.00150123,62829.0,62828.0,1.078536]
[1721019969440,0.00150123,62829.0,62828.0,1.092536]
[1721019970438,0.00150123,62829.0,62828.0,1.106536]
[1721019970860,0.00150123,62829.0,62828.0,1.11266331]
[1721019973539,0.16611115,62838.0,62837.0,0.429682]
[1721019973865,0.28663608,62838.0,62837.0,0.43580198]
[1721019974197,0.15334398,62838.0,62837.0,0.43580198]
[1721019974513,0.01623581,62838.0,62837.0,1.07531198]
[1721019974639,0.01623581,62838.0,62837.0,1.00871198]
[1721019974837,0.01623581,62838.0,62837.0,1.01371198]
[1721019975549,0.01623617,62838.0,62837.0,1.01371198]
[1721019975717,0.01623617,62838.0,62837.0,0.72225698]
[1721019976069,0.01623617,62838.0,62837.0,0.73125698]
[1721019976269,0.3537315,62838.0,62837.0,0.73125698]
[1721019977124,0.15583617,62838.0,62837.0,0.73125698]
[1721019977334,0.01623617,62838.0,62837.0,0.73125698]
[1721019978286,0.01623617,62838.0,62837.0,1.53147918]
[1721019978287,0.00633878,62838.0,62837.0,1.53147918]
[1721019978497,0.00633878,62838.0,62837.0,2.02267918]
[1721019978926,0.00633878,62838.0,62837.0,2.05465918]
[1721019979342,0.00633878,62838.0,62837.0,2.13071156]
[1721019979532,0.00633878,62838.0,62837.0,2.41746195]
[1721019979761,0.005,62854.0,62848.0,2.2768142]
[1721019979902,0.005,62854.0,62848.0,1.274317]
[1721019980120,0.005,62854.0,62848.0,1.17449566]
[1721019980298,0.005,62854.0,62848.0,1.10849566]
[1721019980501,0.1205178,62851.0,62848.0,0.72209066]
[1721019980712,0.1121878,62850.0,62848.0,0.14928066]
[1721019980916,0.09403753,62851.0,62848.0,0.72209066]
[1721019980917,0.00833,62851.0,62848.0,0.72209066]
[1721019981121,0.00833,62851.0,62848.0,0.72510618]
[1721019981323,0.00833,62851.0,62848.0,1.07781118]
[1721019981548,0.00833,62851.0,62848.0,1.10081118]
[1721019981758,0.00833,62851.0,62848.0,0.72510618]
[1721019982519,0.00833,62851.0,62848.0,0.73910618]
[1721019982948,0.19989533,62849.0,62848.0,0.75310618]
[1721019983160,0.33859533,62849.0,62848.0,0.02309418]
[1721019983367,0.3485025,62849.0,62848.0,0.02309418]
[1721019983569,0.3485025,62849.0,62848.0,0.03709418]
[1721019983961,0.6349025,62849.0,62848.0,0.03709418]
[1721019984176,1.1245025,62849.0,62848.0,0.04053877]
[1721019984373,0.34112033,62838.0,62837.0,0.4771]
[1721019984612,0.4897275,62838.0,62837.0,0.4771]
[1721019984726,0.4897275,62838.0,62837.0,0.48985248]
[1721019984938,0.48972677,62838.0,62837.0,0.48985248]
[1721019985573,1.12262677,62838.0,62837.0,0.48985248]
[1721019985777,0.14324,62832.0,62826.0,0.620352]
[1721019985974,0.1387,62838.0,62837.0,0.143227]
[1721019986245,0.00990762,62838.0,62837.0,0.431682]
[1721019986448,0.12209597,62839.0,62838.0,0.429675]
[1721019986656,0.20780351,62839.0,62838.0,0.143225]
[1721019986823,0.20780351,62839.0,62837.0,0.30120748]
[1721019986824,0.19789533,62838.0,62837.0,0.002]
[1721019987032,0.20780351,62838.0,62837.0,0.002]
[1721019987456,0.00990818,62838.0,62837.0,0.437682]
[1721019987746,0.12309598,62838.0,62837.0,0.431682]
[1721019987971,0.00990818,62838.0,62837.0,0.429682]
[1721019988106,0.1121878,62839.0,62838.0,0.143225]
[1721019988337,0.12209558,62839.0,62838.0,0.142225]
[1721019988541,0.12209558,62839.0,62838.0,0.141225]
[1721019989616,0.12209558,62839.0,62838.0,0.144225]
[1721019989955,0.12209558,62839.0,62838.0,0.143225]
[1721019990154,0.20780311,62839.0,62838.0,0.143225]
[1721019990358,0.12209558,62839.0,62838.0,0.143225]
[1721019990673,0.12309558,62839.0,62838.0,0.150225]
[1721019990879,0.01090778,62839.0,62838.0,0.436675]
[1721019991083,0.01090778,62839.0,62838.0,0.723125]
[1721019991296,0.001,62839.0,62838.0,0.723125]
[1721019991635,0.001,62839.0,62838.0,1.9802372]
[1721019992155,0.001,62839.0,62838.0,2.1484372]
[1721019992327,0.001,62839.0,62838.0,2.1454372]
[1721019992748,0.002,62839.0,62838.0,2.1504372]
[1721019993157,0.002,62849.0,62848.0,2.0038292]
[1721019993273,0.002,62849.0,62848.0,2.3548292]
[1721019993468,0.002,62849.0,62848.0,2.553422]
[1721019993674,0.002,62849.0,62848.0,2.1412342]
[1721019993879,0.002,62849.0,62848.0,2.6412342]
[1721019994345,0.003,62849.0,62848.0,2.5212342]
[1721019994527,0.003,62849.0,62848.0,2.433422]
[1721019994699,0.002,62849.0,62848.0,2.425422]
[1721019994930,0.002,62849.0,62848.0,2.424422]
[1721019995086,0.003,62849.0,62848.0,2.432422]
[1721019995490,0.003,62849.0,62848.0,2.5202342]
[1721019995658,0.003,62849.0,62848.0,2.264222]
[1721019995885,0.004,62849.0,62848.0,2.278222]
[1721019996416,0.003,62849.0,62848.0,2.270222]
[1721019996797,0.003,62849.0,62848.0,2.3580342]
[1721019997012,0.003,62849.0,62848.0,2.8126392]
[1721019997417,0.003,62849.0,62848.0,2.8266392]
[1721019997838,0.002,62849.0,62848.0,2.5262342]
[1721019998029,0.002,62849.0,62848.0,2.5402342]
[1721019998224,0.002,62849.0,62848.0,2.5262342]
[1721019999703,0.002,62849.0,62848.0,2.5402342]
[1721019999887,0.002,62849.0,62848.0,3.0266392]
[1721020000984,0.0004138,62866.0,62865.0,0.6878122]
[1721020001110,0.0004138,62866.0,62865.0,2.2239092]
[1721020001314,0.0004138,62866.0,62865.0,2.80919403]
[1721020001518,0.0004138,62866.0,62865.0,2.83219403]
[1721020001939,0.0004138,62866.0,62865.0,2.73219403]
[1721020002161,0.0004138,62866.0,62865.0,3.12752103]
[1721020002366,0.0004138,62866.0,62865.0,3.1682638]
[1721020002739,0.0004138,62866.0,62865.0,3.1592638]
[1721020003220,0.0004138,62866.0,62865.0,3.41884803]
[1721020003221,8e-07,62866.0,62865.0,3.41884803]
[1721020003433,8e-07,62866.0,62865.0,3.4595908]
[1721020003636,8e-07,62866.0,62865.0,2.9595908]
[1721020003832,8e-07,62866.0,62865.0,3.6725908]
[1721020004079,0.08770753,62889.0,62865.0,3.6725908]
[1721020004080,0.002,62889.0,62873.0,1.3924372]
[1721020004294,0.1121878,62888.0,62873.0,2.1280374]
[1721020004497,0.1141878,62889.0,62873.0,1.72845873]
[1721020004646,0.1141878,62889.0,62873.0,2.80104073]
[1721020004845,0.002,62889.0,62873.0,3.08394073]
[1721020005039,0.002,62889.0,62873.0,3.12452333]
[1721020005902,0.002,62889.0,62873.0,3.13852333]
[1721020006126,0.002,62889.0,62873.0,3.09794073]
[1721020006481,0.1121878,62886.0,62873.0,2.61194073]
[1721020006684,0.002,62889.0,62873.0,2.61194073]
[1721020006860,0.002,62889.0,62873.0,3.02412853]
[1721020007104,0.002,62889.0,62873.0,3.01012853]
[1721020007309,0.002,62889.0,62873.0,3.09794073]
[1721020007511,0.002,62889.0,62873.0,3.11194073]
[1721020007711,0.002,62889.0,62873.0,3.08394073]
[1721020007919,0.002,62889.0,62873.0,3.37023173]
[1721020008096,0.002,62889.0,62873.0,3.38423173]
[1721020008300,0.002,62889.0,62873.0,3.11194073]
[1721020008540,0.002,62889.0,62873.0,3.39823173]
[1721020008914,0.002,62889.0,62873.0,3.41223173]
[1721020009310,0.002,62889.0,62873.0,3.40250133]
[1721020009784,0.002,62889.0,62873.0,3.11621033]
[1721020009980,0.002,62889.0,62873.0,3.12579939]
[1721020010155,0.002,62889.0,62873.0,3.11179939]
[1721020010376,0.002,62889.0,62873.0,3.49409039]
[1721020010377,2e-07,62874.0,62873.0,3.49409039]
[1721020010576,2e-07,62874.0,62873.0,3.21119039]
[1721020011545,2e-07,62874.0,62873.0,2.92489939]
[1721020011750,2e-07,62874.0,62873.0,2.42489939]
[1721020011956,2e-07,62874.0,62873.0,2.40189939]
[1721020012162,2e-07,62874.0,62873.0,2.90189939]
[1721020012567,2e-07,62874.0,62873.0,2.38449619]
[1721020012764,0.14178723,62884.0,62883.0,1.215612]
[1721020013229,0.19989533,62889.0,62888.0,0.143111]
[1721020013652,0.19989533,62889.0,62888.0,0.15544247]
[1721020014657,0.19989533,62889.0,62888.0,0.16944247]
[1721020015407,0.19989533,62889.0,62888.0,0.18344247]
[1721020015599,0.19989533,62889.0,62888.0,0.04033147]
[1721020015600,0.69352233,62889.0,62888.0,0.04033147]
[1721020015803,0.77582233,62889.0,62888.0,0.04033147]
[1721020015917,1.12204033,62889.0,62888.0,0.028]
[1721020016974,1.12204033,62889.0,62888.0,0.014]
[1721020017182,0.06,62881.0,62880.0,0.063768]
[1721020017351,0.1121878,62871.0,62870.0,0.143152]
[1721020017564,0.19789533,62871.0,62870.0,0.143152]
[1721020017767,0.1121878,62872.0,62871.0,0.14315]
[1721020018565,0.1121878,62875.0,62871.0,0.2863]
[1721020018773,0.1121878,62878.0,62877.0,0.429409]
[1721020018971,0.1444,62881.0,62880.0,0.143129]
[1721020019170,0.1444,62881.0,62880.0,0.429388]
[1721020019373,0.1121878,62884.0,62883.0,0.143122]
[1721020019792,0.1121878,62881.0,62880.0,0.286259]
[1721020019993,0.1121878,62882.0,62881.0,0.429381]
[1721020020124,0.19789533,62883.0,62882.0,0.143125]
[1721020020482,0.1425,62888.0,62887.0,0.42934]
[1721020020782,0.1425,62888.0,62887.0,0.715567]
[1721020021120,0.0815,62888.0,62887.0,0.715567]
[1721020021526,0.002,62889.0,62888.0,0.715557]
[1721020022120,0.002,62889.0,62888.0,1.50178]
[1721020022342,0.002,62889.0,62888.0,1.62478]
[1721020023398,0.002,62889.0,62888.0,0.814557]
[1721020023765,0.1141878,62889.0,62888.0,0.528334]
[1721020024011,0.002,62889.0,62888.0,0.528334]
[1721020024157,0.002,62889.0,62888.0,1.10078]
[1721020024349,0.002,62889.0,62888.0,1.12378]
[1721020024547,0.002,62889.0,62888.0,1.13778]
[1721020025037,0.003,62889.0,62888.0,1.13278]
[1721020025363,0.003,62889.0,62888.0,1.12378]
[1721020025364,0.002,62889.0,62888.0,1.12378]
[1721020025784,0.003,62889.0,62888.0,1.23778]
[1721020026030,0.003,62889.0,62888.0,1.13778]
[1721020026232,0.002,62889.0,62888.0,1.23778]
[1721020026586,0.0076435,62892.0,62891.0,1.000731]
[1721020026732,0.0076435,62892.0,62891.0,1.023731]
[1721020028059,0.0076435,62892.0,62891.0,1.036731]
[1721020028259,0.0076435,62892.0,62891.0,1.050731]
[1721020030890,0.0076435,62892.0,62891.0,1.06303392]
[1721020032222,0.004957,62892.0,62891.0,1.16303392]
[1721020035196,0.004957,62892.0,62891.0,0.85382492]
[1721020035397,0.004957,62892.0,62891.0,1.35382492]
[1721020035624,0.004957,62892.0,62891.0,1.64003392]
[1721020036695,0.004957,62892.0,62891.0,1.66303392]
[1721020038048,0.004957,62892.0,62891.0,1.64003392]
[1721020040174,0.004957,62892.0,62891.0,1.66303392]
[1721020041977,0.0022705,62892.0,62891.0,1.66303392]
[1721020043479,0.00207912,62892.0,62891.0,1.66303392]
[1721020045934,0.00207912,62892.0,62891.0,1.37682492]
[1721020046098,0.00207912,62892.0,62891.0,0.87682492]
[1721020046299,0.11426692,62892.0,62891.0,0.85382492]
[1721020046511,0.08227912,62892.0,62891.0,1.35382492]
[1721020046718,0.08227912,62892.0,62891.0,1.64003392]
[1721020046719,0.07959262,62892.0,62891.0,1.64003392]
[1721020046928,0.07959262,62892.0,62891.0,1.35382492]
[1721020047132,0.07959262,62892.0,62891.0,0.85382492]
[1721020047133,0.14369262,62892.0,62891.0,0.85382492]
[1721020048029,0.07959262,62892.0,62891.0,0.85382492]
[1721020048638,0.0641,62896.0,62895.0,0.143095]
[1721020048844,0.07401126,62896.0,62895.0,0.429286]
[1721020048965,0.07401126,62896.0,62895.0,0.72773247]
[1721020049506,0.00991126,62896.0,62895.0,1.01392347]
[1721020049703,0.09011126,62900.0,62899.0,0.429259]
[1721020050070,0.28800659,62900.0,62899.0,0.44146564]
[1721020050493,0.28800659,62900.0,62899.0,0.72763864]
[1721020050667,0.09011126,62900.0,62899.0,0.72763864]
[1721020051140,0.13777404,62900.0,62899.0,1.02181164]
[1721020051346,0.00991126,62900.0,62899.0,1.02181164]
[1721020051942,0.07982262,62901.0,62900.0,0.71542]
[1721020052192,0.01824119,62901.0,62900.0,1.024588]
[1721020052475,0.06589818,62901.0,62900.0,1.0367362]
[1721020052612,0.01824061,62901.0,62900.0,1.0367362]
[1721020053016,0.01824061,62901.0,62900.0,1.0427362]
[1721020054055,0.01824061,62901.0,62900.0,1.1871362]
[1721020054265,0.00833,62901.0,62900.0,2.5435844]
[1721020054509,0.00833,62901.0,62900.0,2.1696042]
[1721020054705,0.00833,62901.0,62900.0,2.6696042]
[1721020054906,0.00833,62901.0,62900.0,2.7574164]
[1721020055117,0.00833,62901.0,62900.0,2.7554164]
[1721020055322,0.00833,62901.0,62900.0,1.9994042]
[1721020055520,0.00833,62901.0,62900.0,2.6726042]
[1721020055842,0.00833,62901.0,62900.0,2.7604164]
[1721020056216,0.00833,62901.0,62900.0,2.7638225]
[1721020056618,0.00833,62901.0,62900.0,2.7778225]
[1721020056820,0.00833,62901.0,62900.0,2.7079903]
[1721020057080,0.00833,62901.0,62900.0,2.7029903]
[1721020057377,0.00833,62901.0,62900.0,2.7309903]
[1721020057594,0.00833,62901.0,62900.0,2.6169903]
[1721020057734,0.00833,62901.0,62900.0,2.7309903]
[1721020057933,0.00833,62901.0,62900.0,2.6850103]
[1721020058420,0.00833,62901.0,62900.0,1.7348103]